fUSD/lending_fUSD_20260228
["ID","MTS","AMOUNT","RATE_DAILY","PERIOD"]
[406933885,1772293839666,-177.91803896,0.00016999,2]
[406933886,1772293839676,-223.97135798,0.00016999,2]
[406933887,1772293839685,-290.2394117,0.00016999,2]
[406933888,1772293839695,-3806.19,0.00017001,2]
[406933889,1772293839704,-224.0,0.00017003,2]
[406933890,1772293839713,-151.0,0.00017075,2]
[406933891,1772293839723,-668.65185757,0.00017075,2]
[406933892,1772293839733,-267.46074303,0.00017075,2]
[406933893,1772293839742,-156.84976398,0.00017085,2]
[406933894,1772293839752,-500.0,0.00017085,2]
[406933895,1772293839762,-500.0,0.00017085,2]
[406933896,1772293839771,-500.0,0.00017085,2]
[406933897,1772293839781,-500.0,0.00017085,2]
[406933898,1772293839790,-500.0,0.00017085,2]
[406933899,1772293839799,-269.917619,0.00017085,2]
[406933900,1772293839809,-500.0,0.00017085,2]
[406933901,1772293839818,-500.0,0.00017085,2]
[406933902,1772293839828,-500.0,0.00017085,2]
[406933903,1772293839838,-500.0,0.00017085,2]
[406933904,1772293839847,-500.0,0.00017085,2]
[406933905,1772293839857,-500.0,0.00017085,2]
[406933906,1772293839866,-500.0,0.00017085,2]
[406933907,1772293839879,-151.0,0.00017085,2]
[406933908,1772293839889,-151.0,0.00017085,2]
[406933909,1772293839898,-151.0,0.00017085,2]
[406933910,1772293839907,-151.0,0.00017085,2]
[406933911,1772293839918,-151.0,0.00017085,2]
[406933912,1772293839927,-151.0,0.00017085,2]
[406933913,1772293839937,-151.0,0.00017085,2]
[406933914,1772293839947,-151.0,0.00017085,2]
[406933915,1772293839957,-151.0,0.00017085,2]
[406933916,1772293839966,-151.0,0.00017085,2]
[406933917,1772293839975,-151.0,0.00017085,2]
[406933918,1772293839985,-151.0,0.00017085,2]
[406933919,1772293839994,-180.98567116,0.00017086,2]
[406933920,1772293840003,-824.69950796,0.00017096,2]
[406933921,1772293840015,-2284.49486675,0.00017096,2]
[406933923,1772293840379,-671.3,0.00017096,2]
[406933924,1772293840496,-4900.0,0.00017096,2]
[406933925,1772293840507,-32616.8001675,0.00017096,2]
[406933926,1772293840518,-649.53824,0.00017096,2]
[406933927,1772293840531,-4288.0,0.00017096,2]
[406933933,1772293846175,-4273.43097441,0.00016999,2]
[406933934,1772293846184,-661478.83355001,0.00017096,2]
[406933935,1772293846446,-1111.35105,0.00017096,2]
[406933991,1772293847983,-29164.9699377,0.00017096,2]
[406933994,1772293847994,-1108.93977508,0.00017096,2]
[406933997,1772293848016,-145564.79269888,0.00017096,2]
[406934261,1772295032267,-200.29460036,0.00013872,2]
[406934264,1772295032277,-600.0,0.00013876,2]
[406934265,1772295032286,-2500.0,0.00013881,2]
[406934266,1772295032295,-600.0,0.00013893,2]
[406934267,1772295032305,-600.0,0.00013893,2]
[406934268,1772295032314,-600.0,0.00013893,2]
[406934269,1772295032323,-500.0,0.00013908,2]
[406934270,1772295032332,-500.0,0.00013908,2]
[406934271,1772295032342,-500.0,0.00013908,2]
[406934272,1772295032355,-500.0,0.00013908,2]
[406934273,1772295032364,-500.0,0.00013908,2]
[406934274,1772295032374,-500.0,0.00013908,2]
[406934275,1772295032383,-2500.0,0.00013916,2]
[406934276,1772295032392,-1720.48140498,0.00013916,2]
[406934277,1772295032404,-779.51859502,0.00013916,2]
[406934278,1772295032414,-2500.0,0.00013916,2]
[406934279,1772295032423,-205.46635106,0.00013969,2]
[406934280,1772295032432,-200.0,0.00013983,2]
[406934281,1772295032442,-151.0,0.00013983,2]
[406934282,1772295032451,-151.0,0.00013983,2]
[406934283,1772295032461,-151.0,0.00013983,2]
[406934284,1772295032471,-151.0,0.00013983,2]
[406934285,1772295032480,-151.0,0.00013983,2]
[406934286,1772295032490,-151.0,0.00013983,2]
[406934288,1772295032500,-151.0,0.00013983,2]
[406934290,1772295032510,-151.0,0.00013983,2]
[406934292,1772295032519,-151.0,0.00013983,2]
[406934293,1772295032530,-151.0,0.00013983,2]
[406934295,1772295032539,-151.0,0.00013983,2]
[406934297,1772295032548,-151.0,0.00013983,2]
[406934299,1772295032558,-308.19952659,0.0001404,14]
[406934301,1772295032567,-3545.24,0.0001404,2]
[406934303,1772295032576,-511.0,0.0001411,2]
[406934305,1772295032586,-1101.79140774,0.00014616,2]
[406934307,1772295032595,-811.53089387,0.00014616,2]
[406934308,1772295032605,-1433.83357469,0.00014616,2]
[406934310,1772295032615,-150.99,0.00014616,2]
[406934312,1772295032624,-1421.01043604,0.00014616,2]
[406934314,1772295032633,-245.92908085,0.00014803,2]
[406934315,1772295032642,-169.43046208,0.000149,2]
[406934316,1772295032652,-3240.0,0.00014969,2]
[406934317,1772295032661,-1152.44,0.00015014,2]
[406934318,1772295032671,-2500.0,0.00015259,2]
[406934319,1772295032681,-600.0,0.00015259,2]
[406934320,1772295032690,-272.25575602,0.00015259,2]
[406934321,1772295032699,-500.0,0.00015282,2]
[406934322,1772295032709,-1238.81,0.00015364,2]
[406934323,1772295032719,-166.66,0.00015436,2]
[406934324,1772295032729,-166.66,0.00015761,2]
[406934325,1772295032742,-1152.44,0.00015765,2]
[406934326,1772295032751,-154.41,0.00015776,2]
[406934327,1772295032760,-2372.96,0.00015792,2]
[406934328,1772295032770,-1500.0,0.00015924,2]
[406934329,1772295032779,-166.66,0.00016086,2]
[406934330,1772295032789,-174.04581251,0.00016133,2]
[406934331,1772295032798,-160.0,0.00016133,2]
[406934332,1772295032808,-166.66,0.00016203,2]
[406934333,1772295032818,-166.66,0.00016411,2]
[406934334,1772295032827,-1530.23112425,0.0001645,2]
[406934335,1772295032837,-2000.0,0.000165,2]
[406934336,1772295032847,-1152.44,0.00016516,2]
[406934337,1772295032859,-167.1,0.00016712,2]
[406934338,1772295032879,-166.66,0.00016736,2]
[406934339,1772295032898,-166.66,0.00016738,2]
[406934340,1772295032909,-2556.7344,0.0001684,2]
[406934341,1772295032922,-269.0,0.0001685,2]
[406934342,1772295032931,-250.0,0.0001685,2]
[406934343,1772295032941,-150.141,0.0001685,2]
[406934344,1772295032952,-150.0,0.0001685,2]
[406934345,1772295032962,-150.126,0.0001685,2]
[406934346,1772295032973,-1041.0,0.0001685,2]
[406934347,1772295032982,-618.0,0.0001685,2]
[406934348,1772295032991,-3499.0,0.0001685,2]
[406934349,1772295033002,-1340.0,0.0001685,2]
[406934350,1772295033012,-1277.0,0.0001685,2]
[406934351,1772295033023,-907.892,0.0001685,2]
[406934352,1772295033034,-1211.0,0.0001685,2]
[406934353,1772295033046,-5984.0,0.0001685,2]
[406934354,1772295033055,-2455.0,0.0001685,2]
[406934355,1772295033066,-1000.0,0.00016886,2]
[406934356,1772295033075,-5000.0,0.00016886,2]
[406934357,1772295033085,-2500.0,0.00016886,2]
[406934358,1772295033095,-183.46260466,0.00016896,2]
[406934359,1772295033107,-186.64279832,0.00016896,2]
[406934360,1772295033117,-193.49294114,0.00016896,2]
[406934361,1772295033127,-239.16328608,0.00016896,2]
[406934362,1772295033139,-5270.56486844,0.00016896,2]
[406934363,1772295033150,-1233.9431925,0.00016896,2]
[406934364,1772295033162,-1984.74906644,0.000169,2]
[406934365,1772295033177,-1323.7955665,0.000169,2]
[406934366,1772295033187,-4948.14678938,0.000169,2]
[406934367,1772295033200,-6760.32240083,0.000169,2]
[406934368,1772295033209,-3135.97117794,0.000169,2]
[406934369,1772295033218,-268.6506056,0.00016976,2]
[406934370,1772295033228,-500.0,0.00016985,2]
[406934371,1772295033251,-500.0,0.00016985,2]
[406934372,1772295033270,-500.0,0.00016985,2]
[406934373,1772295033281,-281.09297896,0.00016985,2]
[406934374,1772295033292,-500.0,0.00016985,2]
[406934375,1772295033303,-500.0,0.00016985,2]
[406934376,1772295033314,-500.0,0.00016985,2]
[406934377,1772295033323,-500.0,0.00016985,2]
[406934378,1772295033333,-500.0,0.00016985,2]
[406934379,1772295033343,-500.0,0.00016985,2]
[406934380,1772295033353,-500.0,0.00016985,2]
[406934381,1772295033362,-500.0,0.00016985,2]
[406934382,1772295033373,-500.0,0.00016985,2]
[406934383,1772295033382,-500.0,0.00016985,2]
[406934384,1772295033392,-94006.52216097,0.00016986,2]
[406934385,1772295033415,-525.79675041,0.00016896,2]
[406934386,1772295038483,-534.8,0.00016896,2]
[406934387,1772295038684,-1666.51488386,0.00016896,2]
[406934388,1772295038693,-159074.01608968,0.00016986,2]
[406934389,1772295038707,-150464.32656602,0.00016986,2]
[406934390,1772295038718,-400.0,0.00016986,2]
[406934400,1772295040591,-362.89835816,0.0001685,2]
[406934401,1772295040604,-50.10164184,0.0001685,2]
[406934402,1772295040614,-274.38835816,0.00016896,2]
[406934407,1772295043596,-18.34493096,0.00016896,2]
[406934408,1772295043606,-389.83661719,0.00016986,2]
[406934409,1772295043621,-44004.94430958,0.00016986,2]
[406934410,1772295043747,-3196.0,0.00016986,2]
[406934411,1772295043787,-567.8455016,0.00016986,2]
[406934417,1772295046242,-504.75795,0.00016986,2]
[406934418,1772295046397,-951.04147528,0.00016986,2]
[406934511,1772296146140,-1340.08,0.00012976,2]
[406934512,1772296146163,-300.0,0.00013435,2]
[406934513,1772296146185,-133.02977772,0.00013842,2]
[406934514,1772296231531,-612.35383556,0.000132,2]
[406934515,1772296231546,-984.36616444,0.000132,2]
[406934516,1772296231555,-1062.36981458,0.00013426,2]
[406934517,1772296231661,-427.28014145,0.00013426,2]
[406934518,1772296231671,-166.97022228,0.00013842,2]
[406934519,1772296231681,-263.92284959,0.00013842,2]
[406934520,1772296231692,-1200.0,0.00013893,2]
[406934521,1772296231702,-300.0,0.00013893,2]
[406934522,1772296231711,-600.0,0.00013894,2]
[406934523,1772296231721,-600.0,0.00013894,2]
[406934524,1772296231730,-600.0,0.00013894,2]
[406934525,1772296231740,-600.0,0.00013894,2]
[406934526,1772296231750,-2500.0,0.00013959,2]
[406934527,1772296231759,-2500.0,0.00013959,2]
[406934528,1772296231769,-2500.0,0.00013959,2]
[406934530,1772296231778,-150.0,0.00014272,2]
[406934532,1772296231787,-2500.0,0.00014273,2]
[406934534,1772296231797,-600.0,0.00014273,2]
[406934536,1772296231806,-286.19818021,0.00014273,2]
[406934537,1772296231816,-300.0,0.00014273,2]
[406934539,1772296231824,-2500.0,0.00014273,2]
[406934540,1772296231833,-150.6171655,0.0001452,2]
[406934541,1772296231842,-1680.0,0.00015282,2]
[406934543,1772296231851,-255.0,0.000154,2]
[406934545,1772296231860,-1000.0,0.00015512,2]
[406934547,1772296231870,-150.99,0.0001552,2]
[406934549,1772296231879,-761.23,0.00015521,2]
[406934550,1772296231888,-659.5,0.00015521,2]
[406934552,1772296231899,-158.25,0.00015664,2]
[406934554,1772296231909,-200.0,0.00015818,2]
[406934556,1772296231918,-150.0,0.00015898,2]
[406934557,1772296231927,-761.23,0.00015909,2]
[406934559,1772296231936,-2000.0,0.000162,2]
[406934560,1772296231946,-761.23,0.00016297,2]
[406934561,1772296231955,-2595.0,0.000164,2]
[406934562,1772296231965,-804.76634414,0.00016536,2]
[406934564,1772296231975,-761.23,0.00016685,2]
[406934565,1772296231984,-2000.0,0.000167,2]
[406934567,1772296231994,-14065.3244,0.0001671,2]
[406934569,1772296232004,-2500.0,0.0001671,2]
[406934571,1772296232014,-2655.4724257,0.0001671,2]
[406934572,1772296232025,-509.58692319,0.0001671,2]
[406934573,1772296232037,-462.11065713,0.0001671,2]
[406934583,1772296239927,-1372.82999398,0.0001671,2]
[406934584,1772296239937,-151.0,0.00016766,2]
[406934585,1772296239946,-200.0,0.00016766,2]
[406934586,1772296239955,-151.0,0.00016766,2]
[406934587,1772296239964,-151.0,0.00016766,2]
[406934588,1772296239973,-151.0,0.00016766,2]
[406934589,1772296239983,-151.0,0.00016766,2]
[406934590,1772296239999,-151.0,0.00016766,2]
[406934591,1772296240012,-199.73436941,0.00016766,2]
[406934592,1772296240022,-500.0,0.00016776,2]
[406934593,1772296240032,-462.97120665,0.00016776,2]
[406934594,1772296240042,-2454.40047087,0.00016776,2]
[406934595,1772296240051,-186.64279832,0.00016776,2]
[406934596,1772296240060,-4392.13739035,0.00016776,2]
[406934597,1772296240069,-179.10040373,0.000168,2]
[406934598,1772296240079,-151.0,0.00016807,2]
[406934599,1772296240088,-1452.657,0.00016807,2]
[406934600,1772296240097,-15127.00377308,0.0001681,2]
[406934601,1772296240211,-650.03,0.0001681,2]
[406934603,1772296240409,-33690.96497514,0.0001681,2]
[406934615,1772296242617,-21516.33632413,0.0001681,2]
[406934616,1772296242718,-351270.77153912,0.0001681,2]
[406934617,1772296242743,-55274.62457742,0.0001681,2]
[406934618,1772296242853,-2401.99999999,0.0001681,2]
[406934792,1772296245617,-819.46260539,0.0001681,2]
[406934816,1772297350123,-157.1,8.12e-05,2]
[406934817,1772297350145,-223.22832593,8.305e-05,2]
[406934818,1772297350166,-157.1,8.489e-05,2]
[406934819,1772297350188,-157.1,8.858e-05,2]
[406934820,1772297350210,-250.0,8.932e-05,2]
[406934821,1772297350229,-300.0,8.932e-05,2]
[406934822,1772297350249,-255.36160863,8.932e-05,2]
[406934823,1772297350270,-300.0,8.932e-05,2]
[406934824,1772297350291,-250.0,9.021e-05,2]
[406934825,1772297350313,-157.1,9.228e-05,2]
[406934826,1772297350335,-157.1,9.597e-05,2]
[406934827,1772297350357,-157.1,9.966e-05,2]
[406934828,1772297350379,-157.1,0.00010335,2]
[406934844,1772297431561,-157.1,0.00010704,2]
[406934845,1772297431571,-157.1,0.00011073,2]
[406934846,1772297431583,-157.1,0.00011442,2]
[406934847,1772297431594,-500.0,0.00011442,2]
[406934848,1772297431603,-158.00240098,0.00011442,2]
[406934849,1772297431612,-500.0,0.00011774,2]
[406934850,1772297431622,-264.45413062,0.00011774,2]
[406934851,1772297431631,-157.1,0.00011811,2]
[406934852,1772297431641,-157.1,0.0001218,2]
[406934853,1772297431651,-208.83,0.00012423,2]
[406934854,1772297431660,-157.1,0.00012549,2]
[406934855,1772297431669,-157.1,0.00012919,2]
[406934856,1772297431679,-157.1,0.00013288,2]
[406934857,1772297431691,-297.0,0.00013299,2]
[406934858,1772297431701,-839.04112314,0.000133,3]
[406934859,1772297431710,-804.38498926,0.000133,3]
[406934860,1772297431720,-800.62560255,0.000133,3]
[406934861,1772297431729,-829.09461408,0.000133,3]
[406934862,1772297431739,-417.2546032,0.00013361,2]
[406934863,1772297431748,-157.1,0.00013657,2]
[406934864,1772297431758,-500.0,0.0001369,2]
[406934865,1772297431767,-1500.0,0.00013865,2]
[406934866,1772297431776,-500.0,0.00013899,2]
[406934867,1772297431785,-500.0,0.00013899,2]
[406934868,1772297431795,-500.0,0.00013899,2]
[406934869,1772297431804,-200.0,0.00013899,2]
[406934870,1772297431814,-151.0,0.00013899,2]
[406934871,1772297431823,-151.0,0.00013899,2]
[406934873,1772297431833,-500.0,0.00013899,2]
[406934875,1772297431842,-151.0,0.00013899,2]
[406934877,1772297431851,-500.0,0.00013899,2]
[406934879,1772297431859,-151.0,0.00013899,2]
[406934881,1772297431869,-500.0,0.00013899,2]
[406934882,1772297431878,-151.0,0.00013899,2]
[406934883,1772297431888,-500.0,0.00013899,2]
[406934884,1772297431899,-151.0,0.00013899,2]
[406934885,1772297431908,-500.0,0.00013899,2]
[406934886,1772297431917,-151.0,0.00013899,2]
[406934887,1772297431927,-151.0,0.00013899,2]
[406934888,1772297431936,-500.0,0.00013899,2]
[406934889,1772297431946,-151.0,0.00013899,2]
[406934890,1772297431955,-500.0,0.00013899,2]
[406934891,1772297431965,-151.0,0.00013899,2]
[406934892,1772297431975,-500.0,0.00013899,2]
[406934893,1772297431984,-500.0,0.00013899,2]
[406934894,1772297431994,-500.0,0.00013899,2]
[406934895,1772297432003,-500.0,0.00013899,2]
[406934896,1772297432013,-500.0,0.00013899,2]
[406934897,1772297432022,-500.0,0.00013908,2]
[406934898,1772297432032,-500.0,0.00013908,2]
[406934899,1772297432042,-500.0,0.00013908,2]
[406934900,1772297432054,-500.0,0.00013908,2]
[406934901,1772297432066,-500.0,0.00013908,2]
[406934902,1772297432079,-160.144,0.00013908,2]
[406934903,1772297432092,-484.71516567,0.00013908,2]
[406934904,1772297432105,-500.0,0.00013908,2]
[406934905,1772297432115,-550.78546123,0.00013908,2]
[406934906,1772297432125,-526.23779749,0.00013908,2]
[406934907,1772297432136,-500.0,0.00013908,2]
[406934908,1772297432148,-157.1,0.00014026,2]
[406934909,1772297432160,-1100.0,0.0001411,2]
[406934910,1772297432171,-510.0,0.0001411,2]
[406934911,1772297432182,-259.17530453,0.00014182,2]
[406934912,1772297432194,-166.68,0.000142,2]
[406934913,1772297432206,-157.1,0.00014395,2]
[406934914,1772297432218,-532.89246011,0.00014456,2]
[406934915,1772297432230,-990.28139264,0.00014456,2]
[406934916,1772297432241,-212.37829793,0.00014456,2]
[406934917,1772297432253,-1000.0,0.00014456,2]
[406934918,1772297432264,-779.13777388,0.00014456,2]
[406934919,1772297432275,-1000.0,0.00014456,2]
[406934920,1772297432285,-157.1,0.00014764,2]
[406934921,1772297432296,-250.0,0.00014986,2]
[406934922,1772297432309,-283.56358268,0.00014997,2]
[406934923,1772297432319,-298.53948142,0.00015004,2]
[406934924,1772297432331,-1500.0,0.00015004,2]
[406934925,1772297432343,-166.66,0.00015005,2]
[406934926,1772297432355,-1186.48,0.00015143,2]
[406934927,1772297432367,-166.66,0.00015321,2]
[406934928,1772297432378,-150.0,0.00015347,2]
[406934929,1772297432391,-2000.0,0.00015552,2]
[406934930,1772297432403,-166.66,0.00015637,2]
[406934931,1772297432415,-1600.0,0.00015942,2]
[406934932,1772297432427,-166.66,0.00015953,2]
[406934933,1772297432438,-2500.0,0.00016099,2]
[406934934,1772297432450,-1188.7522107,0.000161,2]
[406934935,1772297432467,-2944.9574893,0.000161,2]
[406934936,1772297432478,-40055.6433,0.000161,2]
[406934937,1772297432489,-9999.99,0.00016116,2]
[406934938,1772297432500,-160.0,0.00016142,2]
[406934939,1772297432512,-174.04581251,0.00016142,2]
[406934940,1772297432523,-1313.84418466,0.00016143,3]
[406934941,1772297432534,-151.0,0.00016197,2]
[406934942,1772297432545,-5066.6509523,0.00016199,2]
[406934943,1772297432556,-1000.0,0.000162,2]
[406934944,1772297432568,-5314.91795405,0.000162,3]
[406934945,1772297432579,-6704.28040836,0.000162,3]
[406934946,1772297432593,-317.74,0.000162,2]
[406934947,1772297432605,-2042.95989151,0.000162,2]
[406934948,1772297432617,-5000.0,0.000162,2]
[406934949,1772297432628,-2500.0,0.000162,2]
[406934950,1772297432640,-1748.08618939,0.00016238,2]
[406934951,1772297432652,-166.66,0.00016269,2]
[406934952,1772297432663,-174.74093112,0.00016274,2]
[406934953,1772297432673,-7933.54546634,0.00016289,2]
[406934954,1772297432683,-3400.73129003,0.00016289,2]
[406934955,1772297432698,-1254.41808677,0.00016289,2]
[406934956,1772297432711,-539.07428944,0.00016289,2]
[406934957,1772297432740,-498.60816711,0.00016289,2]
[406934958,1772297432752,-699.49483532,0.00016289,2]
[406934959,1772297432764,-402.45784403,0.00016289,2]
[406934960,1772297432781,-2074.08780426,0.00016289,2]
[406934961,1772297432791,-196.32932638,0.00016289,2]
[406934962,1772297432804,-205.30707816,0.00016289,2]
[406934963,1772297432816,-179.10040373,0.0001629,2]
[406934964,1772297432827,-151.0,0.00016297,2]
[406934965,1772297432838,-2042.95989145,0.00016389,2]
[406934966,1772297432848,-42885.44756353,0.000164,2]
[406934967,1772297432859,-266.81662109,0.00016438,2]
[406934968,1772297432870,-228.15,0.00016438,2]
[406934969,1772297432880,-8868.87231692,0.00016468,2]
[406934970,1772297432891,-317.74,0.00016474,2]
[406934971,1772297432905,-151.0,0.00016506,2]
[406934972,1772297432915,-500.0,0.00016506,2]
[406934973,1772297432925,-500.0,0.00016506,2]
[406934974,1772297432937,-500.0,0.00016506,2]
[406934975,1772297432948,-269.917619,0.00016506,2]
[406934976,1772297432959,-500.0,0.00016506,2]
[406934977,1772297432971,-500.0,0.00016506,2]
[406934978,1772297432983,-194.24097534,0.00016506,2]
[406934979,1772297432994,-151.0,0.00016506,2]
[406934980,1772297433005,-500.0,0.00016506,2]
[406934981,1772297433015,-500.0,0.00016506,2]
[406934982,1772297433026,-500.0,0.00016506,2]
[406934983,1772297433036,-668.65185757,0.00016506,2]
[406934984,1772297433047,-500.0,0.00016506,2]
[406934985,1772297433058,-500.0,0.00016506,2]
[406934986,1772297433069,-500.0,0.00016506,2]
[406934987,1772297433080,-500.0,0.00016506,2]
[406934988,1772297433092,-500.0,0.00016506,2]
[406934989,1772297433102,-500.0,0.00016506,2]
[406934990,1772297433113,-500.0,0.00016506,2]
[406934991,1772297433124,-447.26161919,0.00016506,2]
[406934992,1772297433135,-250.0,0.00016506,2]
[406934993,1772297433146,-278.44613912,0.00016506,2]
[406934994,1772297433157,-267.46074303,0.00016506,2]
[406934995,1772297433168,-166.68,0.00016543,2]
[406934996,1772297433178,-174.74093108,0.00016545,2]
[406934997,1772297433189,-151.0,0.00016561,2]
[406934998,1772297433201,-693.3919763,0.00016561,2]
[406934999,1772297433211,-350.0,0.00016569,2]
[406935000,1772297433223,-2042.95989145,0.00016578,2]
[406935001,1772297433234,-166.66,0.00016585,2]
[406935002,1772297433244,-7933.54546633,0.00016611,2]
[406935003,1772297433255,-151.0,0.00016616,2]
[406935004,1772297433266,-719.04747942,0.00016616,2]
[406935005,1772297433277,-151.0,0.00016644,2]
[406935006,1772297433287,-8868.87231692,0.00016647,2]
[406935007,1772297433298,-3000.0,0.00016647,2]
[406935008,1772297433309,-26671.93679785,0.0001665,2]
[406935026,1772297437686,-346.22909034,0.0001665,2]
[406935027,1772297437698,-3478.75,0.0001665,2]
[406935028,1772297437710,-1349.90711029,0.0001665,2]
[406935029,1772297437740,-1029.82236099,0.0001665,2]
[406935030,1772297437751,-1188.74622491,0.0001665,2]
[406935031,1772297437796,-321.535,0.0001665,2]
[406935034,1772297439903,-4495.7121631,0.0001665,2]
[406935035,1772297439914,-151.0,0.0001665,2]
[406935036,1772297439923,-151.0,0.0001665,2]
[406935037,1772297439935,-151.0,0.0001665,2]
[406935038,1772297439944,-372.998721,0.00016663,2]
[406935039,1772297439954,-151.0,0.00016671,2]
[406935040,1772297439964,-745.65223616,0.00016671,2]
[406935041,1772297439975,-4828.6571,0.00016676,2]
[406935042,1772297439984,-151.0,0.00016676,2]
[406935043,1772297439994,-151.0,0.00016676,2]
[406935044,1772297440003,-151.0,0.00016676,2]
[406935045,1772297440013,-151.0,0.00016676,2]
[406935046,1772297440022,-151.0,0.00016676,2]
[406935047,1772297440032,-151.0,0.00016676,2]
[406935048,1772297440041,-293.838736,0.00016676,2]
[406935049,1772297440056,-150.0,0.0001671,2]
[406935050,1772297440065,-150.0,0.0001671,2]
[406935051,1772297440075,-151.0,0.0001671,2]
[406935052,1772297440084,-151.0,0.0001671,2]
[406935053,1772297440094,-150.0,0.0001671,2]
[406935054,1772297440104,-150.0,0.0001671,2]
[406935055,1772297440113,-150.0,0.0001671,2]
[406935056,1772297440123,-150.0,0.0001671,2]
[406935057,1772297440132,-167.11,0.00016712,2]
[406935058,1772297440142,-151.0,0.00016726,2]
[406935059,1772297440152,-773.2413689,0.00016726,2]
[406935060,1772297440162,-317.75421015,0.00016748,2]
[406935061,1772297440171,-313.31371215,0.00016754,2]
[406935062,1772297440181,-2042.95989145,0.00016767,2]
[406935063,1772297440191,-151.0,0.00016767,2]
[406935064,1772297440200,-151.0,0.00016767,2]
[406935065,1772297440210,-7782.7047608,0.0001677,2]
[406935066,1772297440220,-335.1848719,0.0001677,2]
[406935067,1772297440229,-839.8960002,0.0001677,2]
[406935068,1772297440239,-186723.1957983,0.0001677,2]
[406935069,1772297440248,-151.0,0.00016781,2]
[406935070,1772297440258,-801.85129955,0.00016781,2]
[406935071,1772297440268,-1000.0,0.0001681,2]
[406935072,1772297440278,-733.851,0.0001681,2]
[406935073,1772297440288,-211.0,0.0001681,2]
[406935074,1772297440298,-174.74093108,0.00016816,2]
[406935075,1772297440307,-200.0,0.00016822,2]
[406935076,1772297440317,-8868.87231692,0.00016826,2]
[406935077,1772297440327,-151.0,0.00016836,2]
[406935078,1772297440336,-831.51979763,0.00016836,2]
[406935079,1772297440346,-151.0,0.00016891,2]
[406935080,1772297440356,-862.28603014,0.00016891,2]
[406935081,1772297440365,-2000.0,0.0001691,2]
[406935082,1772297440375,-151.0,0.00016946,2]
[406935083,1772297440384,-894.19061326,0.00016946,2]
[406935084,1772297440394,-2042.95989145,0.00016956,2]
[406935085,1772297440404,-8525.2105555,0.00016965,2]
[406935086,1772297440414,-155.0,0.00016975,2]
[406935087,1772297440423,-24456.2791248,0.00016976,2]
[406935089,1772297440434,-2701.3454746,0.00016976,2]
[406935090,1772297440444,-151.0,0.00016976,2]
[406935091,1772297440453,-151.0,0.00016976,2]
[406935092,1772297440463,-151.0,0.00016976,2]
[406935093,1772297440473,-151.0,0.00016976,2]
[406935095,1772297440483,-151.0,0.00016976,2]
[406935097,1772297440492,-151.0,0.00016976,2]
[406935099,1772297440502,-151.0,0.00016976,2]
[406935102,1772297440511,-151.0,0.00016976,2]
[406935104,1772297440520,-151.0,0.00016976,2]
[406935105,1772297440530,-151.0,0.00016976,2]
[406935106,1772297440539,-151.0,0.00016976,2]
[406935108,1772297440549,-151.0,0.00016976,2]
[406935110,1772297440558,-151.0,0.00016976,2]
[406935112,1772297440568,-151.0,0.00016976,2]
[406935114,1772297440577,-151.0,0.00016976,2]
[406935116,1772297440586,-151.0,0.00016976,2]
[406935118,1772297440595,-252.729421,0.00016976,2]
[406935120,1772297440605,-151.0,0.00016976,2]
[406935121,1772297440614,-151.0,0.00016976,2]
[406935122,1772297440623,-151.0,0.00016976,2]
[406935123,1772297440633,-151.0,0.00016976,2]
[406935124,1772297440642,-300.0,0.00016976,3]